bitfinex-derivatives/quotes_BTCF0:USTF0_20260207
["timestamp","ask_amount","ask_price","bid_price","bid_amount"]
[1770463035750,0.41266608,68016.0,68000.0,0.42866115]
[1770463036748,0.00016188,68017.0,68000.0,0.41394715]
[1770463036952,0.41266608,68030.0,68010.0,0.42865915]
[1770463037153,0.41266608,68030.0,68010.0,0.41394715]
[1770463037948,0.014705,68042.0,68010.0,0.41394715]
[1770463037949,0.41278404,68029.0,68010.0,0.41394715]
[1770463038351,0.014708,68028.0,68010.0,0.41394715]
[1770463038554,0.41278404,68029.0,68010.0,0.41394715]
[1770463038752,0.41278404,68029.0,68011.0,0.42865815]
[1770463040654,0.41266608,68038.0,68022.0,0.41394715]
[1770463042958,0.41266608,68045.0,68024.0,0.41394715]
[1770463043356,0.41266608,68045.0,68026.0,0.41394715]
[1770463043553,0.014703,68051.0,68030.0,0.41394715]
[1770463043752,0.014704,68047.0,68030.0,0.41394715]
[1770463045650,0.014703,68051.0,68030.0,0.42865415]
[1770463045854,0.41266608,68052.0,68034.0,0.42865315]
[1770463046356,0.41266608,68052.0,68036.0,0.42865315]
[1770463046558,0.41266608,68052.0,68038.0,0.014706]
[1770463047146,0.41266608,68052.0,68038.0,0.42865315]
[1770463047756,0.41266608,68059.0,68038.0,0.42865315]
[1770463047951,0.41266608,68059.0,68045.0,0.42865115]
[1770463048151,0.41266608,68065.0,68045.0,0.42865115]
[1770463048355,0.41266608,68065.0,68045.0,0.41394715]
[1770463048956,0.41266608,68063.0,68045.0,0.41394715]
[1770463049154,0.41266608,68061.0,68045.0,0.41394715]
[1770463051563,0.41266608,68072.0,68045.0,0.42865115]
[1770463052159,0.41266608,68072.0,68045.0,0.41394715]
[1770463052554,0.42736408,68072.0,68048.0,0.41394715]
[1770463052756,0.42736408,68072.0,68052.0,0.014703]
[1770463052952,0.42736408,68072.0,68053.0,0.41394715]
[1770463053368,0.41266608,68069.0,68053.0,0.41394715]
[1770463054366,0.41266608,68067.0,68046.0,0.41394715]
[1770463055468,0.41266608,68067.0,68047.0,0.014704]
[1770463055966,0.41266608,68067.0,68047.0,0.41475231]
[1770463056664,0.4436095,68049.0,68029.0,0.014707]
[1770463056861,0.4289065,68049.0,68029.0,0.014707]
[1770463057170,0.0147,68064.0,68029.0,0.014707]
[1770463057171,0.4289065,68047.0,68029.0,0.014707]
[1770463060572,0.4289065,68039.0,68021.0,0.40004831]
[1770463060867,0.4289065,68039.0,68022.0,0.014709]
[1770463061065,0.4289065,68039.0,68024.0,0.014709]
[1770463061474,0.4289065,68039.0,68021.0,0.41475731]
[1770463062166,0.4289065,68039.0,68014.0,0.17596525]
[1770463062167,0.4289065,68039.0,68014.0,0.40004831]
[1770463062864,0.4289065,68036.0,68021.0,0.001]
[1770463063566,0.4289065,68036.0,68019.0,0.01471]
[1770463064270,0.014705,68040.0,68020.0,0.40004831]
[1770463064871,0.4436115,68040.0,68020.0,0.40004831]
[1770463066163,0.4289065,68037.0,68020.0,0.40004831]
[1770463066767,0.4289065,68035.0,68020.0,0.40004831]
[1770463067166,0.4289065,68030.0,68013.0,0.17596525]
[1770463067368,0.4289065,68030.0,68011.0,0.17596525]
[1770463068074,0.4289065,68030.0,68011.0,0.57601356]
[1770463068567,0.4289065,68030.0,68012.0,0.014711]
[1770463069073,0.4436135,68034.0,68014.0,0.41475931]
[1770463069673,0.4436135,68034.0,68002.0,0.0002]
[1770463069674,0.4289065,68048.0,68028.0,0.40004831]
[1770463069875,0.4436105,68045.0,68028.0,0.40004831]
[1770463071974,0.4436115,68043.0,68026.0,0.11674912]
[1770463072175,0.4289065,68043.0,68026.0,0.13145712]
[1770463072873,0.4289065,68043.0,68026.0,0.53150543]
[1770463073775,0.4289065,68043.0,68028.0,0.41475631]
[1770463074077,0.4436105,68046.0,68028.0,0.40004831]
[1770463074275,0.4289065,68043.0,68027.0,0.11674912]
[1770463075474,0.4289065,68043.0,68026.0,0.11674912]
[1770463077179,0.4289065,68043.0,68027.0,0.41475631]
[1770463077375,0.4436105,68047.0,68029.0,0.41475631]
[1770463078379,0.4436105,68047.0,68029.0,0.40004831]
[1770463078976,0.4436105,68045.0,68029.0,0.40004831]
[1770463079172,0.4436105,68045.0,68027.0,0.11674912]
[1770463080272,0.4289065,68042.0,68027.0,0.11674912]
[1770463080676,0.4289065,68038.0,68026.0,0.0901953]
[1770463080877,0.014703,68052.0,68013.0,0.22032795]
[1770463080878,0.4289065,68028.0,68013.0,0.22032795]
[1770463081170,0.4289065,68028.0,68010.0,0.41476031]
[1770463081171,0.4289065,68028.0,68011.0,0.22032795]
[1770463081378,0.4289065,68026.0,68007.0,0.41476031]
[1770463081681,0.4289065,68033.0,68015.0,0.41475831]
[1770463081880,0.4289065,68033.0,68015.0,0.40004831]
[1770463082071,0.014707,68032.0,68015.0,0.40004831]
[1770463082983,0.4436135,68032.0,68015.0,0.40004831]
[1770463083170,0.014707,68032.0,68015.0,0.40004831]
[1770463084185,0.4436135,68032.0,68015.0,0.40004831]
[1770463087280,0.014707,68030.0,68015.0,0.40004831]
[1770463087878,0.41651742,68030.0,68015.0,0.40004831]
[1770463089282,0.40181042,68025.0,68009.0,0.64915727]
[1770463089588,0.40181042,68023.0,68008.0,0.22032795]
[1770463089888,0.41277688,68029.0,68009.0,0.42569927]
[1770463090386,0.42748488,68028.0,68009.0,0.42569927]
[1770463091285,0.41277688,68028.0,68012.0,0.41098727]
[1770463092885,0.41277688,68034.0,68017.0,0.42569727]
[1770463093081,0.014706,68037.0,68017.0,0.42569727]
[1770463093386,0.41277688,68041.0,68025.0,0.41098727]
[1770463093787,0.42748188,68041.0,68025.0,0.41098727]
[1770463097290,0.014705,68039.0,68025.0,0.41098727]
[1770463098491,0.014705,68042.0,68025.0,0.41098727]
[1770463098693,0.014705,68040.0,68025.0,0.41098727]
[1770463099887,0.41277688,68037.0,68017.0,0.22032795]
[1770463100086,0.014705,68042.0,68010.0,0.41098727]
[1770463100087,0.41277688,68034.0,68011.0,0.22032795]
[1770463100294,0.41277688,68025.0,68010.0,0.42569927]
[1770463100692,0.41277688,68025.0,68010.0,0.41098727]
[1770463101289,0.42748588,68024.0,68006.0,0.23503995]
[1770463101792,0.42748588,68024.0,68006.0,0.014712]
[1770463102391,0.014711,68014.0,68002.0,0.22032795]
[1770463102599,0.014711,68014.0,67996.0,0.22032795]
[1770463102600,0.41277688,68014.0,67996.0,0.22032795]
[1770463102790,0.014713,68007.0,67994.0,0.14708821]
[1770463103097,0.41277688,68009.0,67994.0,0.14708821]
[1770463103998,0.014712,68008.0,67994.0,0.14708821]
[1770463104193,0.41277688,68005.0,67994.0,0.14708821]
[1770463105388,0.41277688,68003.0,67994.0,0.14708821]
[1770463105594,0.014712,68007.0,67994.0,0.14708821]
[1770463108196,0.42748788,68016.0,67997.0,0.41098727]
[1770463108403,0.014706,68038.0,67999.0,0.41098727]
[1770463108404,0.01471,68019.0,67999.0,0.41098727]
[1770463108701,0.01471,68017.0,67999.0,0.41098727]
[1770463108903,0.41277688,68010.0,67994.0,0.14708821]
[1770463110101,0.014712,68009.0,67994.0,0.14708821]
[1770463110496,0.42748888,68009.0,67994.0,0.14708821]
[1770463110699,0.41277688,68006.0,67994.0,0.14708821]
[1770463110896,0.014713,68005.0,67994.0,0.14708821]
[1770463111303,0.42748988,68005.0,67994.0,0.14708821]
[1770463112091,0.42748988,68003.0,67994.0,0.14708821]
[1770463112605,0.41277688,68003.0,67994.0,0.14708821]
[1770463113099,0.014713,68006.0,67994.0,0.14708821]
[1770463113398,0.42748888,68009.0,67994.0,0.14708821]
[1770463113796,0.014712,68007.0,67994.0,0.14708821]
[1770463114402,0.41277688,68009.0,67994.0,0.14708821]
[1770463115100,0.41277688,68003.0,67994.0,0.14708821]
[1770463115709,0.41277688,68001.0,67987.0,0.14529148]
[1770463116105,0.42710234,67998.0,67987.0,0.14529148]
[1770463116702,0.44181734,67996.0,67987.0,0.14529148]
[1770463117211,0.44181634,68002.0,67987.0,0.14529148]
[1770463118208,0.014714,68000.0,67987.0,0.14529148]
[1770463118609,0.44181634,67998.0,67987.0,0.14529148]
[1770463119104,0.42710234,67998.0,67987.0,0.14529148]
[1770463119808,0.014715,67997.0,67987.0,0.14529148]
[1770463120702,0.014716,67989.0,67972.0,0.44307833]
[1770463121704,0.014717,67986.0,67972.0,0.44307833]
[1770463122707,0.014716,67992.0,67977.0,0.14444482]
[1770463123109,0.014716,67990.0,67977.0,0.14444482]
[1770463123712,0.44181834,67990.0,67977.0,0.14444482]
[1770463124009,0.014717,67988.0,67977.0,0.14444482]
[1770463124614,0.014717,67988.0,67972.0,0.45779833]
[1770463124815,0.014717,67988.0,67972.0,0.44307833]
[1770463125016,0.014716,67991.0,67978.0,0.44307833]
[1770463125815,0.00012308,67996.0,67978.0,0.44307833]
[1770463126013,0.014714,68002.0,67989.0,0.44307833]
[1770463126721,0.014714,68000.0,67989.0,0.44307833]
[1770463127718,0.014714,68000.0,67983.0,0.44307833]
[1770463129422,0.014714,67998.0,67983.0,0.44307833]
[1770463129718,0.44181734,67995.0,67977.0,0.16287834]
[1770463131022,0.44181734,67995.0,67978.0,0.44307833]
[1770463133326,0.44181734,67995.0,67979.0,0.44307833]
[1770463134021,0.014715,67995.0,67979.0,0.45779633]
[1770463134214,0.014714,68001.0,67984.0,0.44307833]
[1770463134620,0.42710234,68008.0,67984.0,0.44307833]
[1770463135326,0.014714,67999.0,67984.0,0.44307833]
[1770463136125,0.44181734,67997.0,67980.0,0.17498464]
[1770463136330,0.014715,67995.0,67981.0,0.44307833]
[1770463137527,0.42710234,68002.0,67981.0,0.45779633]
[1770463138326,0.014715,67996.0,67981.0,0.45779633]
[1770463139126,0.014712,68011.0,67984.0,0.44307833]
[1770463139127,0.42710234,68008.0,67984.0,0.44307833]
[1770463139933,0.014715,67997.0,67984.0,0.44307833]
[1770463140434,0.42710234,68008.0,67986.0,0.44307833]
[1770463141135,0.42710234,68006.0,67986.0,0.44307833]
[1770463141527,0.42710234,68014.0,67988.0,0.44307833]
[1770463141833,0.014711,68013.0,67997.0,0.44307833]
[1770463142024,0.014711,68013.0,67999.0,0.45779233]
[1770463142227,0.01458771,68013.0,67999.0,0.45779233]
[1770463142934,0.01458771,68013.0,67999.0,0.44307833]
[1770463144023,0.42710234,68011.0,67995.0,0.11732075]
[1770463144228,0.42710234,68011.0,67996.0,0.44307833]
[1770463144428,0.014711,68012.0,67996.0,0.57511408]
[1770463144727,0.014711,68012.0,67997.0,0.44307833]
[1770463145532,0.014711,68015.0,67997.0,0.45779233]
[1770463145937,0.014711,68015.0,67997.0,0.13203475]
[1770463146129,0.014711,68015.0,67998.0,0.43318634]
[1770463146331,0.42830408,68008.0,67994.0,0.11732075]
[1770463146533,0.42830408,68008.0,67993.0,0.11732075]
[1770463146733,0.42830408,68008.0,67992.0,0.13203575]
[1770463146931,0.014709,68023.0,67994.0,0.44790134]
[1770463146932,0.014712,68011.0,67994.0,0.44790134]
[1770463147634,0.014712,68011.0,67996.0,0.014715]
[1770463147837,0.01471,68016.0,68001.0,0.43318634]
[1770463148431,0.01471,68019.0,68003.0,0.43318634]
[1770463148641,0.014709,68022.0,68007.0,0.43318634]
[1770463150132,0.014709,68025.0,68008.0,0.014712]
[1770463150330,0.014709,68025.0,68009.0,0.44737065]
[1770463152430,0.014709,68023.0,68009.0,0.44737065]
[1770463152632,0.014709,68021.0,68009.0,0.44737065]
[1770463153435,0.014709,68024.0,68009.0,0.46208265]
[1770463154628,0.014709,68022.0,68009.0,0.44737065]
[1770463154828,0.40489903,68032.0,68009.0,0.44737065]
[1770463154829,0.01471,68020.0,68009.0,0.44737065]
[1770463155029,0.014712,68010.0,67997.0,0.13203475]
[1770463155335,0.014712,68010.0,67995.0,0.5646914]
[1770463155535,0.014712,68010.0,67995.0,0.44737065]
[1770463156833,0.014707,68031.0,68015.0,0.46208165]
[1770463157036,0.014709,68025.0,68007.0,0.44737065]
[1770463157540,0.40489903,68030.0,68009.0,0.44737065]
[1770463158128,0.014709,68022.0,68009.0,0.44737065]
[1770463158539,0.40489903,68025.0,68003.0,0.44737065]
[1770463158837,0.014712,68011.0,67996.0,0.44737065]
[1770463159442,0.40489903,68019.0,67996.0,0.44737065]
[1770463160336,0.014712,68008.0,67996.0,0.44737065]
[1770463160733,0.014711,68014.0,68000.0,0.44737065]
[1770463160937,0.40489903,68019.0,68000.0,0.44737065]
[1770463161538,0.014711,68013.0,68000.0,0.44737065]
[1770463162435,0.40489903,68019.0,68000.0,0.44737065]
[1770463162633,0.014712,68008.0,68000.0,0.44737065]
[1770463164839,0.41960903,68018.0,68000.0,0.44737065]
[1770463165038,0.014712,68008.0,68000.0,0.44737065]
[1770463165745,0.41960903,68018.0,68000.0,0.44737065]
[1770463165945,0.40489903,68024.0,68000.0,0.44737065]
[1770463166146,0.40489903,68024.0,68004.0,0.44737065]
[1770463167447,0.014709,68022.0,68008.0,0.44737065]
[1770463167646,0.01471,68020.0,68008.0,0.44737065]
[1770463167849,0.01471,68018.0,68008.0,0.44737065]
[1770463169349,0.014708,68029.0,68008.0,0.44737065]
[1770463169843,0.01471,68019.0,68008.0,0.44737065]
[1770463172744,0.01471,68019.0,68006.0,0.13203375]
[1770463173143,0.01471,68019.0,68007.0,0.44737065]
[1770463174250,0.014708,68029.0,68007.0,0.44737065]
[1770463174251,0.014711,68016.0,68007.0,0.44737065]
[1770463175151,0.014712,68010.0,68000.0,0.5646914]
[1770463175744,0.014711,68013.0,68000.0,0.5646914]
[1770463175944,0.014711,68016.0,68002.0,0.54528946]
[1770463176148,0.014711,68016.0,68003.0,0.41325571]
[1770463176349,0.014708,68028.0,68005.0,0.41325571]
[1770463176751,0.01471,68017.0,68005.0,0.41325571]
[1770463177354,0.014708,68028.0,68007.0,0.41325571]
[1770463177553,0.014711,68015.0,68007.0,0.41325571]
[1770463178649,0.01471,68020.0,68007.0,0.41325571]
[1770463178848,0.01471,68020.0,68007.0,0.53057646]
[1770463179051,0.43990676,68027.0,68008.0,0.41325571]
[1770463180052,0.01471,68019.0,68008.0,0.41325571]
[1770463180748,0.43990676,68027.0,68008.0,0.41325571]
[1770463180948,0.01471,68019.0,68008.0,0.41325571]
[1770463181249,0.43990676,68027.0,68008.0,0.41325571]
[1770463182051,0.43990676,68048.0,68029.0,0.11125571]
[1770463182247,0.014706,68036.0,68029.0,0.11125571]
[1770463182549,0.43990676,68046.0,68029.0,0.11125571]
[1770463182747,0.43990676,68046.0,68030.0,0.01470829]
[1770463183150,0.43990676,68046.0,68031.0,0.01470829]
[1770463183349,0.43990676,68046.0,68030.0,0.01470829]
[1770463183746,0.43990676,68046.0,68031.0,0.01470829]
[1770463183943,0.43990676,68046.0,68030.0,0.01470829]
[1770463184154,0.43990676,68046.0,68031.0,0.01470829]
[1770463184450,0.44090676,68046.0,68030.0,0.01470829]
[1770463184959,0.001,68046.0,68032.0,0.41325571]
[1770463185149,0.43990676,68053.0,68031.0,0.01470829]
[1770463185150,0.014702,68057.0,68045.0,0.01470829]
[1770463185348,0.43990676,68061.0,68045.0,0.41325571]
[1770463185349,0.014701,68060.0,68045.0,0.41325571]
[1770463185556,0.014701,68060.0,68046.0,0.01470829]
[1770463186046,0.014701,68060.0,68047.0,0.01470829]
[1770463186247,0.014701,68060.0,68046.0,0.01470829]
[1770463186559,0.014699,68068.0,68052.0,0.42795871]
[1770463186745,0.014696,68083.0,68066.0,0.41325571]
[1770463186951,0.014696,68083.0,68067.0,0.01470829]
[1770463187348,0.014696,68083.0,68068.0,0.01470829]
[1770463187550,0.014696,68083.0,68066.0,0.42795471]
[1770463187551,0.014696,68083.0,68067.0,0.427964]
[1770463187755,0.014695,68087.0,68068.0,0.42795471]
[1770463187951,0.014695,68087.0,68068.0,0.442663]
[1770463188152,0.014695,68087.0,68070.0,0.41325571]
[1770463188650,0.43990676,68089.0,68071.0,0.01470829]
[1770463188651,0.014696,68085.0,68071.0,0.01470829]
[1770463189157,0.014696,68083.0,68072.0,0.01470829]
[1770463189353,0.014696,68083.0,68065.0,0.0147]
[1770463189354,0.014696,68083.0,68071.0,0.427964]
[1770463189558,0.014696,68083.0,68071.0,0.41325571]
[1770463189753,0.014696,68083.0,68072.0,0.01470829]
[1770463190146,0.014696,68083.0,68073.0,0.01470829]
[1770463190355,0.014696,68083.0,68072.0,0.01470829]
[1770463190752,0.014696,68083.0,68073.0,0.01470829]
[1770463191059,0.014696,68083.0,68066.0,0.01470829]
[1770463191451,0.014696,68083.0,68067.0,0.01470829]
[1770463191652,0.014696,68083.0,68066.0,0.427964]
[1770463191956,0.014695,68087.0,68067.0,0.42795471]
[1770463192260,0.014695,68087.0,68067.0,0.442663]
[1770463192452,0.014695,68087.0,68069.0,0.41325571]
[1770463192646,0.43990676,68089.0,68069.0,0.41325571]
[1770463192852,0.014696,68085.0,68070.0,0.01470829]
[1770463193058,0.014696,68085.0,68070.0,0.427964]
[1770463193258,0.014696,68085.0,68071.0,0.01470829]
[1770463193760,0.014696,68085.0,68072.0,0.01470829]
[1770463193954,0.014696,68085.0,68071.0,0.01470829]
[1770463194354,0.014696,68085.0,68072.0,0.01470829]
[1770463194554,0.014696,68085.0,68071.0,0.01470829]
[1770463194953,0.014696,68085.0,68072.0,0.427964]
[1770463195158,0.014696,68085.0,68072.0,0.41325571]
[1770463195354,0.014696,68085.0,68073.0,0.01470829]
[1770463195756,0.014696,68085.0,68074.0,0.01470829]
[1770463195955,0.014696,68085.0,68073.0,0.01470829]
[1770463196364,0.43990676,68084.0,68074.0,2.9e-07]
[1770463196857,0.014697,68080.0,68074.0,2.9e-07]
[1770463197254,0.45460376,68080.0,68074.0,2.9e-07]
[1770463197662,0.014697,68078.0,68063.0,0.41325571]
[1770463198563,0.44090676,68080.0,68063.0,0.42795571]
[1770463199865,0.43990676,68080.0,68063.0,0.42795571]
[1770463200766,0.43990676,68096.0,68066.0,0.41325571]
[1770463201068,0.014694,68094.0,68077.0,0.41325571]
[1770463202068,0.014694,68092.0,68077.0,0.41325571]
[1770463203965,0.08813,68121.0,68080.0,0.41325571]
[1770463203966,0.014693,68098.0,68080.0,0.41325571]
[1770463204169,0.43990676,68119.0,68084.0,0.41325571]
[1770463204367,0.43990676,68119.0,68098.0,0.41325571]
[1770463204671,0.014691,68108.0,68098.0,0.41325571]
[1770463204870,0.01469,68111.0,68098.0,0.41325571]
[1770463205064,0.01469,68109.0,68098.0,0.41325571]
[1770463205366,0.014691,68106.0,68098.0,0.41325571]
[1770463205567,0.014691,68106.0,68080.0,0.15113604]
[1770463205568,0.01469,68109.0,68093.0,0.42794971]
[1770463205966,0.014691,68107.0,68093.0,0.42794971]
[1770463206864,0.014691,68107.0,68093.0,0.41325571]
[1770463207074,0.014694,68091.0,68077.0,0.014697]
[1770463207377,0.014695,68088.0,68072.0,0.46162401]
[1770463207582,0.014689,68115.0,68072.0,0.46162401]
[1770463207583,0.45589138,68119.0,68100.0,0.014692]
[1770463207873,0.014688,68122.0,68107.0,0.46161701]
[1770463208075,0.014688,68120.0,68107.0,0.44692601]
[1770463208374,0.014689,68116.0,68107.0,0.44692601]
[1770463208574,0.014689,68116.0,68083.0,0.11534684]
[1770463208575,0.014689,68116.0,68099.0,0.44692601]
[1770463209374,0.014689,68116.0,68101.0,0.44692601]
[1770463209573,0.014688,68119.0,68102.0,0.46161801]
[1770463209774,0.014687,68126.0,68109.0,0.44692601]
[1770463210465,0.014684,68138.0,68109.0,0.44692601]
[1770463210671,0.014687,68127.0,68115.0,0.46187771]
[1770463210876,0.49457518,68132.0,68110.0,0.01469]
[1770463211280,0.014686,68128.0,68110.0,0.47656771]
[1770463211877,0.014686,68128.0,68113.0,0.014689]
[1770463212079,0.50926118,68132.0,68114.0,0.46187771]
[1770463212376,0.014686,68132.0,68114.0,0.46187771]
[1770463212875,0.014686,68132.0,68102.0,0.14397422]
[1770463212876,0.014686,68132.0,68116.0,0.46187771]
[1770463213070,0.49457518,68133.0,68109.0,0.46187771]
[1770463213276,0.49457518,68127.0,68105.0,0.014691]
[1770463213476,0.49457518,68125.0,68105.0,0.014691]
[1770463213676,0.014687,68123.0,68105.0,0.014691]
[1770463213975,0.014687,68123.0,68105.0,0.47656871]
[1770463214770,0.49457518,68125.0,68098.0,0.46187771]
[1770463214976,0.01469,68111.0,68093.0,0.47657171]
[1770463215374,0.014691,68108.0,68093.0,0.46187771]
[1770463216173,0.014691,68108.0,68093.0,0.46287771]
[1770463216681,0.49457518,68116.0,68093.0,0.46287771]
[1770463217077,0.01469,68112.0,68096.0,0.46187771]
[1770463217580,0.014691,68108.0,68096.0,0.46187771]
[1770463217772,0.49457518,68113.0,68088.0,0.46187771]
[1770463217968,0.014691,68105.0,68088.0,0.47657271]
[1770463218981,0.014691,68105.0,68090.0,0.014694]
[1770463219681,0.014691,68105.0,68090.0,0.47657171]
[1770463220079,0.014691,68108.0,68090.0,0.47657171]
[1770463222877,0.014691,68106.0,68090.0,0.47657171]
[1770463225378,0.49457518,68132.0,68100.0,0.46187771]
[1770463225679,0.49457518,68132.0,68113.0,0.46187771]
[1770463225983,0.014688,68122.0,68113.0,0.46187771]
[1770463228184,0.014687,68125.0,68113.0,0.46187771]
[1770463228878,0.014688,68123.0,68113.0,0.46187771]
[1770463230488,0.014687,68126.0,68113.0,0.46187771]
[1770463230874,0.014687,68124.0,68113.0,0.46187771]
[1770463231088,0.014687,68127.0,68113.0,0.46187771]
[1770463231289,0.014686,68128.0,68117.0,0.46187771]
[1770463237083,0.014687,68127.0,68114.0,0.5377933]
[1770463237492,0.50867023,68131.0,68109.0,0.11571505]
[1770463237698,0.50867023,68131.0,68109.0,0.5377933]
[1770463237989,0.014688,68122.0,68109.0,0.5377933]
[1770463239393,0.50867023,68137.0,68115.0,0.5377933]
[1770463239785,0.014687,68127.0,68115.0,0.5377933]
[1770463240499,0.014687,68125.0,68115.0,0.5377933]
[1770463241686,0.014686,68128.0,68115.0,0.5377933]
[1770463241884,0.014687,68126.0,68115.0,0.5377933]
[1770463242594,0.014686,68129.0,68115.0,0.5377933]
[1770463242995,0.014687,68127.0,68115.0,0.5377933]
[1770463246893,0.50867023,68132.0,68115.0,0.5377933]
[1770463247087,0.014685,68136.0,68115.0,0.5377933]
[1770463247088,0.50867023,68130.0,68115.0,0.5377933]
[1770463247702,0.014687,68123.0,68115.0,0.53053361]
[1770463248700,0.014687,68123.0,68110.0,0.01469]
[1770463249001,0.52335623,68128.0,68109.0,0.5377933]
[1770463249397,0.50867023,68126.0,68109.0,0.5377933]
[1770463250299,0.50867023,68104.0,68088.0,0.68563775]
[1770463250602,0.014694,68093.0,68082.0,0.5377933]
[1770463251003,0.014695,68088.0,68072.0,0.5377933]
[1770463251604,0.014694,68094.0,68078.0,0.5377933]
[1770463251997,0.014694,68092.0,68078.0,0.5377933]
[1770463252801,0.50867023,68105.0,68081.0,0.5377933]
[1770463253105,0.014691,68107.0,68081.0,0.5377933]
[1770463254307,0.014691,68105.0,68087.0,0.5377933]
[1770463254508,0.014689,68116.0,68089.0,0.5377933]
[1770463254806,0.014689,68116.0,68088.0,0.014695]
[1770463254807,0.50867023,68118.0,68095.0,0.5377933]
[1770463255002,0.01469,68113.0,68097.0,0.5377933]
[1770463255210,0.01469,68111.0,68097.0,0.5377933]
[1770463255407,0.014689,68114.0,68097.0,0.5524863]
[1770463255601,0.01469,68112.0,68097.0,0.5524863]
[1770463255795,0.014691,68109.0,68097.0,0.5377933]
[1770463258812,0.014691,68106.0,68097.0,0.5377933]
[1770463259809,0.50867023,68117.0,68097.0,3e-07]
[1770463260112,0.014695,68090.0,68075.0,0.5377933]
[1770463260411,0.014694,68093.0,68075.0,0.5524913]
[1770463260812,0.014696,68083.0,68075.0,0.5377933]
[1770463261111,0.50867023,68093.0,68067.0,0.1436662]
[1770463261305,0.014693,68097.0,68061.0,0.5377933]
[1770463261306,0.014697,68077.0,68061.0,0.5377933]
[1770463262010,0.014696,68083.0,68067.0,0.5377933]
[1770463263612,0.014697,68081.0,68067.0,0.5377933]
[1770463263811,0.014697,68079.0,68067.0,0.5377933]
[1770463264908,0.0147,68065.0,68052.0,0.24873891]
[1770463265101,0.014699,68069.0,68052.0,0.24873891]
[1770463265407,0.014696,68084.0,68069.0,0.24860571]
[1770463265614,0.014695,68087.0,68071.0,0.24860571]
[1770463265817,0.014695,68087.0,68070.0,0.014699]
[1770463265818,0.52781803,68103.0,68077.0,0.23390971]
[1770463266018,0.52781803,68101.0,68077.0,0.23390971]
[1770463266202,0.52781803,68090.0,68068.0,0.24134873]
[1770463266404,0.014697,68081.0,68068.0,0.24134873]
[1770463266605,0.014697,68079.0,68068.0,0.24134873]
[1770463266909,0.014697,68077.0,68060.0,0.25604973]
[1770463267924,0.073461,68103.0,68048.0,0.36102585]
[1770463267925,0.0147,68065.0,68053.0,0.24134873]
[1770463268917,0.0147,68065.0,68046.0,0.2437093]
[1770463269112,0.014699,68068.0,68046.0,0.2437093]
[1770463269414,0.014699,68068.0,68052.0,0.2438425]
[1770463271911,0.55919526,68080.0,68052.0,0.2438425]
[1770463272120,0.014697,68078.0,68062.0,0.24256529]
[1770463273517,0.014697,68078.0,68064.0,0.24256529]
[1770463276017,0.014698,68076.0,68064.0,0.24256529]
[1770463280223,0.55919526,68095.0,68070.0,0.23702022]
[1770463280518,0.014694,68091.0,68077.0,0.23702022]
[1770463280824,0.55919526,68095.0,68077.0,0.23702022]
[1770463281514,0.014695,68088.0,68077.0,0.23702022]
[1770463285530,0.014695,68086.0,68077.0,0.23702022]
[1770463285725,0.55919526,68095.0,68068.0,0.21050174]
[1770463286026,0.014698,68076.0,68062.0,0.0147]
[1770463286222,0.55919526,68082.0,68061.0,0.20526624]
[1770463286423,0.014698,68072.0,68061.0,0.20526624]
[1770463287326,0.014699,68070.0,68061.0,0.20526624]
[1770463287725,0.014699,68070.0,68052.0,0.0001332]
[1770463287726,0.014699,68070.0,68053.0,0.19483574]
[1770463287928,0.014699,68070.0,68057.0,0.014701]
[1770463288425,0.014699,68070.0,68055.0,0.19728859]
[1770463289329,0.014699,68070.0,68054.0,0.014702]
[1770463289330,0.55919526,68088.0,68063.0,0.19212494]
[1770463289621,0.55919526,68085.0,68064.0,0.20182068]
[1770463291129,0.014697,68078.0,68064.0,0.20182068]
[1770463296231,0.014698,68076.0,68064.0,0.18712068]
[1770463298027,0.014698,68074.0,68064.0,0.18712068]
[1770463299430,0.014698,68074.0,68061.0,0.014701]
[1770463299733,0.014698,68074.0,68061.0,0.14849611]
[1770463301235,0.54019916,68091.0,68068.0,0.12336218]
[1770463301536,0.014696,68085.0,68074.0,0.12336218]
[1770463302937,0.54019916,68097.0,68064.0,0.21626126]
[1770463302938,0.54019916,68097.0,68078.0,0.11019622]
[1770463303234,0.55489116,68104.0,68078.0,0.11019622]
[1770463303837,0.014694,68092.0,68078.0,0.11019622]
[1770463304230,0.014694,68092.0,68080.0,0.10357867]
[1770463306637,0.014696,68083.0,68073.0,0.09484102]
[1770463306836,0.54019916,68086.0,68067.0,0.09075497]
[1770463307039,0.014694,68094.0,68067.0,0.09075497]
[1770463307040,0.54019916,68084.0,68067.0,0.09075497]
[1770463307540,0.014697,68079.0,68067.0,0.09075497]
[1770463309836,0.54019916,68084.0,68060.0,0.08091593]
[1770463310137,0.014695,68089.0,68060.0,0.08091593]
[1770463310138,0.014698,68073.0,68060.0,0.08091593]
[1770463310335,0.014698,68072.0,68060.0,0.08091593]
[1770463311632,0.014698,68072.0,68058.0,0.014701]
[1770463311633,0.014699,68070.0,68057.0,0.18967464]
[1770463311939,0.014697,68078.0,68064.0,0.08748255]
[1770463312340,0.54019916,68088.0,68064.0,0.08748255]
[1770463312736,0.54019916,68082.0,68064.0,0.07278255]
[1770463312930,0.54019916,68074.0,68059.0,0.11689209]
[1770463313135,0.014699,68072.0,68058.0,0.18501924]
[1770463313534,0.014699,68072.0,68058.0,0.06812715]
[1770463314236,0.014699,68072.0,68058.0,0.18501924]
[1770463315142,0.54019916,68074.0,68058.0,0.19972024]
[1770463315842,0.54019916,68074.0,68059.0,0.05400955]
[1770463317334,0.014699,68068.0,68059.0,0.05400955]
[1770463317843,0.0147,68066.0,68059.0,0.05400955]
[1770463318538,0.014699,68067.0,68059.0,0.05400955]
[1770463318941,0.014699,68067.0,68053.0,0.15881611]
[1770463319341,0.014699,68067.0,68054.0,0.04188883]
[1770463320940,0.014696,68082.0,68054.0,0.04188883]
[1770463321245,0.54019916,68075.0,68058.0,0.03514546]
[1770463321446,0.014698,68072.0,68058.0,0.03514546]
[1770463322447,0.014698,68072.0,68060.0,0.02969783]
[1770463324641,0.54019916,68081.0,68062.0,0.02218888]
[1770463324944,0.014697,68078.0,68065.0,0.0147]
[1770463325144,0.014698,68076.0,68065.0,0.01884829]
[1770463326742,0.014698,68074.0,68065.0,0.01884829]
[1770463326940,0.52476515,68065.0,68056.0,0.11689209]
[1770463327244,0.014705,68043.0,68026.0,0.32226969]
[1770463327442,0.48890586,68051.0,68026.0,0.32226969]
[1770463327443,0.014704,68046.0,68026.0,0.30756169]
[1770463327848,0.014703,68049.0,68030.0,0.014707]
[1770463328046,0.014703,68049.0,68032.0,0.31907385]